Cogmind - Beta 14 @@@ ROGUE MODE // 2024.09.24 @ 17:00:06 Player: siona Result: Destroyed by 1K-DTZ(R) with Subdweller Machine Gun Performance ------------- Evolutions (0) 0 Regions Visited (3) 600 Robots Destroyed (27) 135 Value Destroyed (337) 337 Prototype IDs (2) 40 Alien Tech Used (0) 0 Bonus (0) 0 TOTAL SCORE: 1112 Bonus ------- None Cogmind --------- Core Integrity 0/250 Matter 290/300 Energy 85/100 System Corruption 0% Temperature Cool (0) Movement Treading (250) Ox1 Location -10/Subcaves Parts ------- > --- POWER (1) -------- (None) > --- PROPULSION (2) --- Light Treads Spiked Treads > --- UTILITY (2) ------ High-capacity Storage Unit Signal Interpreter > --- WEAPON (2) ------- Light Assault Rifle Makeshift Axe > --- INVENTORY (20) --- Light Ion Engine Light Angular Momentum Engine Improved Heat Sink Medium Storage Unit High-capacity Matter Pod (200) Structural Scanner Sensor Array Terrain Scan Processor Utility Shielding Utility Shielding Weapon Shielding Scrap Shield Light Assault Rifle Light Assault Rifle Light Assault Rifle Grenade Launcher Rocket Launcher Mining Laser Peak State ------------ > --- POWER ------------ Ion Engine > --- PROPULSION ------- Light Treads Spiked Treads > --- UTILITY ---------- High-capacity Storage Unit Signal Interpreter > --- WEAPON ----------- Light Assault Rifle Makeshift Axe > --- INVENTORY -------- Light Ion Engine Light Angular Momentum Engine Light Treads Improved Heat Sink Medium Storage Unit High-capacity Matter Pod Structural Scanner Sensor Array Terrain Scan Processor Utility Shielding Utility Shielding Weapon Shielding Scrap Shield Light Assault Rifle Light Assault Rifle Light Assault Rifle Grenade Launcher Rocket Launcher Mining Laser [Rating: 14] Favorites ----------- Power Ion Engine Engine Ion Engine Propulsion Light Treads Treads Light Treads Utility High-capacity Storage Unit Device Structural Scanner Storage High-capacity Storage Unit Processor Signal Interpreter Weapon Light Assault Rifle Ballistic Gun Light Assault Rifle Launcher Grenade Launcher Slashing Weapon Makeshift Axe Build | -11 -10 -10 -10 ------- Run | Yrd Mat Min Sub Slots Evolved . | . . . . Power . | . . . . Propulsion . | . . . . Utility . | . . . . Weapon . | . . . . Parts Attached 21 | 6 6 7 2 Power 3 | 1 1 1 . Engine 3 | 1 1 1 . Core . | . . . . Reactor . | . . . . Propulsion 6 | 2 . 2 2 Treads 6 | 2 . 2 2 Leg . | . . . . Wheel . | . . . . Hover . | . . . . Flight . | . . . . Utility 4 | 1 2 1 . Device 1 | . 1 . . Storage 2 | 1 1 . . Processor 1 | . . 1 . Hackware . | . . . . Protection . | . . . . Artifact . | . . . . Weapon 8 | 2 3 3 . Energy Gun . | . . . . Energy Cannon . | . . . . Ballistic Gun 6 | 2 3 1 . Ballistic Cannon . | . . . . Launcher 1 | . . 1 . Special Weapon . | . . . . Impact Weapon . | . . . . Slashing Weapon 1 | . . 1 . Piercing Weapon . | . . . . Special Melee Weapon . | . . . . Unidentified Prototypes . | . . . . Parts Lost 7 | . 4 1 2 Power 3 | . 1 1 1 Propulsion 2 | . 1 . 1 Utility . | . . . . Weapon 2 | . 2 . . Highest Loss Streak 2 | . 1 1 2 To Critical Strikes . | . . . . Average Slot Usage (%) 95 | . 94 95 98 Engine 12 | . 13 10 12 Treads 25 | . 24 27 28 Device 9 | . 13 6 . Storage 14 | . 14 14 14 Processor 3 | . . 7 14 Ballistic Gun 23 | . 27 20 14 Slashing Weapon 3 | . . 7 14 Peak Build Rating 14 | 6 8 12 14 Average Rating 8 | 5 7 10 12 On Entrance 6 | . 6 7 12 Naked Turns . | . . . . Heaviest Build 50 | 13 50 50 49 Greatest Support 40 | 40 40 40 40 Greatest Overweight (x) 2 | . 2 2 1 Average Overweight (x) . | . 1 1 1 Largest Inventory Capacity 20 | 8 20 20 20 Average Capacity 17 | 7 18 20 20 Most Carried 20 | 4 17 20 20 Average Carried 11 | 3 9 18 19 Final Capacity 20 | 8 20 20 20 Final Carried 19 | 4 17 19 19 Class Distribution -------------------- 100% | Mutant Dominant Class ---------------- Mutant | -10/Materials Mutant | -10/Mines Mutant | -10/Subcaves Resources | -11 -10 -10 -10 ----------- Run | Yrd Mat Min Sub Matter Collected 922 | 254 445 219 4 Remotely . | . . . . Salvage Created 589 | . 454 92 43 Parts 63 | . 45 15 3 Haulers Intercepted 1 | . 1 . . Recyclers Shooed . | . . . . Parts Field Recycled . | . . . . Retrieved Matter . | . . . . Parts Self-Destructed 6 | . . . 6 Prevented . | . . . . Kills | -11 -10 -10 -10 ------- Run | Yrd Mat Min Sub Combat Hostiles Destroyed 16 | . 11 4 1 Melee 1 | . . . 1 Guns 13 | . 11 2 . AOE 2 | . . 2 . Classes Destroyed 9 | . 8 . 1 Worker 2 | . 1 1 . Builder 3 | . 1 2 . Hauler 1 | . 1 . . Recycler 1 | . 1 . . Operator 1 | . 1 . . Watcher 3 | . 3 . . Swarmer 13 | . 9 4 . Grunt 2 | . 2 . . Subdweller 1 | . . . 1 Best Kill Streak 4 | . 4 3 1 Combat Bots Only 3 | . 3 3 1 Max Kills in Single Turn 2 | . 2 2 1 Gunslinging 1 | . 1 . . Exploded 2 | . . 2 . Melee 1 | . . . 1 Uniques/NPCs Destroyed . | . . . . Combat | -11 -10 -10 -10 -------- Run | Yrd Mat Min Sub Hostile Shots Fired 155 | . 99 33 23 Missed 39 | . 25 8 6 Damage Taken 1281 | . 675 194 412 Core 270 | . 107 58 105 Absorbed by Shields . | . . . . Core Remaining (%) 100 | 100 . . . Volleys Fired 79 | . 62 17 . Largest 2 | . 2 2 . Hottest 50 | . 40 50 . Shots Fired 150 | . 116 34 . Gun 149 | . 116 33 . Cannon . | . . . . Launcher 1 | . . 1 . Special . | . . . . Kinetic 149 | . 116 33 . Thermal . | . . . . Explosive 1 | . . 1 . Electromagnetic . | . . . . Robot Hit Streak 12 | . 7 12 . Robot Miss Streak 6 | . 6 1 . Penetration Max . | . . . . Secondary Targets 2 | . 1 1 . Max Gunslinging Chain 1 | . 1 1 . Shots Hit Robots 95 | . 66 27 2 Core Hits 38 | . 26 11 1 Critical Kills . | . . . . Critical Parts Destroyed 1 | . 1 . . Critical Strikes 1 | . 1 . . Destroy 1 | . 1 . . Melee Attacks 4 | . . 2 2 Impact . | . . . . Slashing 4 | . . 2 2 Piercing . | . . . . Sneak Attacks 1 | . . 1 . Combat Hostiles . | . . . . Follow-up Attacks . | . . . . Damage Inflicted 1226 | . 735 407 84 Guns 921 | . 733 188 . Cannons . | . . . . Explosions 91 | . . 91 . Melee 212 | . . 128 84 Ramming 2 | . 2 . . Kinetic 921 | . 733 188 . Thermal . | . . . . Explosive 91 | . . 91 . Electromagnetic . | . . . . Impact . | . . . . Slashing 212 | . . 128 84 Piercing . | . . . . Highest Corruption . | . . . . Average Corruption . | . . . . Corruption Purged . | . . . . Corruption Blocked . | . . . . Overload Shots . | . . . . Overflow Damage 45 | . . 45 . Projectiles . | . . . . Explosions . | . . . . Melee 45 | . . 45 . Knockbacks . | . . . . Impact . | . . . . Kinetic . | . . . . Secondary . | . . . . Self-Inflicted Damage 4 | . . 4 . Shots 1 | . . 1 . Rammed 3 | . 3 . . Targets Rammed 3 | . 3 . . Kicked . | . . . . Crushed . | . . . . Highest Temperature 271 | . 6 . 271 Average Temperature 134 | . 6 . 152 Received Heat Transfer 474 | . 117 . 357 Siege Activations . | . . . . Robots Corrupted . | . . . . Combat Hostiles . | . . . . Parts Fried . | . . . . Impact Corruptions . | . . . . Robots Melted . | . . . . Combat Hostiles . | . . . . Parts Melted . | . . . . Heat Transferred . | . . . . Parts Sabotaged . | . . . . Parts Stolen . | . . . . Parts Stripped . | . . . . Power Chain Reactions . | . . . . Alert | -11 -10 -10 -10 ------- Run | Yrd Mat Min Sub Peak Influence 150 | . 150 77 . Initial . | . . . . Average 22 | . 37 14 . Maximum Alert Level . | . . . . Low Security (%) 100 | 100 100 100 . Level 1 . | . . . . Level 2 . | . . . . Level 3 . | . . . . Level 4 . | . . . . Level 5 . | . . . . High Security . | . . . . Max Security . | . . . . Squads Dispatched 1 | . 1 . . Investigation . | . . . . Extermination . | . . . . Reinforcement 1 | . 1 . . Assault . | . . . . Garrison . | . . . . Intercept . | . . . . Searches Triggered . | . . . . Construction Impeded . | . . . . Haulers Reinforced . | . . . . Active Scanning Responses . | . . . . Cargo Convoy Interrupts . | . . . . Stealth | -11 -10 -10 -10 --------- Run | Yrd Mat Min Sub Distress Signals 2 | . 2 . . Communications Jammed . | . . . . Distress Signals . | . . . . Times Spotted 39 | . 25 4 10 Peak Tracking Total 6 | . 4 3 6 Tactical Retreats 2 | . 2 . . Traps | -11 -10 -10 -10 ------- Run | Yrd Mat Min Sub Traps Triggered . | . . . . Indirectly . | . . . . Trap Hack Attempts . | . . . . Triggered . | . . . . Disarmed . | . . . . Reprogrammed . | . . . . Reused . | . . . . Traps Extracted . | . . . . Installed . | . . . . Triggered 1 | . . . 1 Machines | -11 -10 -10 -10 ---------- Run | Yrd Mat Min Sub Machines Disabled 1 | . 1 . . Max in Single Turn 1 | . 1 . . Machines Repaired . | . . . . Machines Dismantled . | . . . . Machines Sabotaged . | . . . . Overloaded Fab Kills . | . . . . Hacking | -11 -10 -10 -10 --------- Run | Yrd Mat Min Sub Machines Accessed 2 | . 2 . . Terminals 2 | . 2 . . Fabricators . | . . . . Repair Stations . | . . . . Recycling Units . | . . . . Scanalyzers . | . . . . Garrison Access . | . . . . Total Hacks 3 | . 3 . . Successful 2 | . 2 . . Failed 1 | . 1 . . Catastrophic . | . . . . Database Lockouts . | . . . . Manual . | . . . . Terminals 3 | . 3 . . Fabricators . | . . . . Repair Stations . | . . . . Recycling Units . | . . . . Scanalyzers . | . . . . Garrison Access . | . . . . Terminal Hacks 2 | . 2 . . Prototype ID Bank 1 | . 1 . . Zone Layout 1 | . 1 . . Fabricator Hacks . | . . . . Repair Station Hacks . | . . . . Recycling Unit Hacks . | . . . . Scanalyzer . | . . . . Garrison Access Hacks . | . . . . Unauthorized Hacks . | . . . . Terminals . | . . . . Fabricators . | . . . . Repair Stations . | . . . . Recycling Units . | . . . . Scanalyzers . | . . . . Garrison Access . | . . . . Data Cores Recovered . | . . . . Used . | . . . . Hacking Detections 2 | . 2 . . Full Trace Events . | . . . . Feedback Events . | . . . . Feedback Blocked . | . . . . Robot Schematics Acquired . | . . . . Robots Built . | . . . . Authchips . | . . . . Time . | . . . . Total Robot Build Rating . | . . . . Part Schematics Acquired . | . . . . Parts Built . | . . . . Authchips . | . . . . Time . | . . . . Total Part Build Rating . | . . . . Parts Repaired . | . . . . Time . | . . . . Parts Recycled . | . . . . Recycled Matter . | . . . . Retrieved Matter . | . . . . Retrieved Components . | . . . . Parts Scanalyzed . | . . . . Part Schematics Acquired . | . . . . Parts Damaged . | . . . . Bothacking | -11 -10 -10 -10 ------------ Run | Yrd Mat Min Sub Used RIF Installer . | . . . . Robots Hacked . | . . . . Non-combat . | . . . . Combat . | . . . . Robot Hacks Applied . | . . . . Relay Couplers Released . | . . . . Fabnet Peak Effective % . | . . . . Robots Rewired . | . . . . Allies Hacked . | . . . . Hacks Repelled . | . . . . Allies | -11 -10 -10 -10 -------- Run | Yrd Mat Min Sub Total Allies . | . . . . Largest Group . | . . . . Highest-Rated Group . | . . . . Highest-Rated Ally . | . . . . Total Orders . | . . . . Ally Attacks . | . . . . Total Damage . | . . . . Kills . | . . . . Allies Corrupted . | . . . . Allies Melted . | . . . . Intel | -11 -10 -10 -10 ------- Run | Yrd Mat Min Sub Robot Analysis Total . | . . . . Derelict Logs Recovered 1 | . . 1 . Drone Launches . | . . . . Drone Recoveries . | . . . . Exploration | -11 -10 -10 -10 ------------- Run | Yrd Mat Min Sub Turns Passed 5699 | 1052 2613 1753 281 Spaces Moved 1845 | 84 955 703 103 Core 6 | 6 . . . Treads 1839 | 78 955 703 103 Legs . | . . . . Wheels . | . . . . Hover . | . . . . Flight . | . . . . Fastest Speed 50 | 50 160 240 240 Average Speed 238 | 152 245 240 242 Slowest Speed 320 | 160 320 320 250 Overloaded Moves . | . . . . Propulsion Burnouts . | . . . . Robots Hopped . | . . . . Cave-ins Triggered . | . . . . Exploration Rate (%) 48 | 8 82 98 6 Regions Visited 3 Branch Regions 2 Pre-discovered Areas 2 | . . 2 . Known Exits Taken 1 | . . 1 . Unknown Exits Taken 2 | 1 1 . . Scrap Searched 1 | . . 1 . Spaces Dug . | . . . . Terrain Destroyed 7 | . . 7 . Melee . | . . . . Projectile . | . . . . AOE 7 | . . 7 . Terrain Rammed . | . . . . Walls Destroyed . | . . . . Machines Disabled . | . . . . Actions | -11 -10 -10 -10 --------- Run | Yrd Mat Min Sub Total 2989 | 1005 1113 739 132 Wait 999 | 912 65 . 22 Move 1842 | 83 954 702 103 Hop . | . . . . Pick Up 30 | 4 18 7 1 Fast Attach 8 | 6 2 . . Attach 7 | . 3 3 1 Detach 2 | . 1 1 . Swap 6 | . 1 4 1 Drop 9 | . 4 3 2 Fire 79 | . 62 17 . Melee 4 | . . 2 2 Ram . | . . . . Kick . | . . . . Crush 3 | . 3 . . Escape Stasis . | . . . . Rewire . | . . . . Trap . | . . . . Miscellaneous . | . . . . Route ------- -11/Scrapyard -10/Materials (discovered 3 exits: *Mat x2 / [*Min]) -10/Mines (discovered 3 exits: *Mat x2 / *Sub) -10/Subcaves History --------- Turn | Location | Event 19 | -11/Scrapyard | Discovered new exit (range 15) 1053 | -11/Scrapyard | Entered Materials 1054 | -10/Materials | Build established: Mutant 1354 | -10/Materials | Discovered new exit (range 15) 1598 | -10/Materials | Discovered new exit (range 11) 1876 | -10/Materials | Discovered new exit (range 14) 3666 | -10/Materials | Entered Mines 3673 | -10/Mines | Met a Derelict bent on vengeance 3711 | -10/Mines | Discovered new exit (range 14) 3717 | -10/Mines | Learned location of Storage (-7) 3786 | -10/Mines | Core integrity fell below 50% 4463 | -10/Mines | Discovered new exit (range 9) 4473 | -10/Mines | A weapon hastily lodged in a ceiling crevice suddenly fell to the ground 4501 | -10/Mines | Identified exit to Materials 4577 | -10/Mines | Received a Rocket Launcher from a helpful Derelict 5410 | -10/Mines | Discovered new exit (range 5) 5417 | -10/Mines | Identified exit to Subcaves 5419 | -10/Mines | Entered Subcaves 5533 | -10/Subcaves | Shifting Twisted Machinery released Sub. Optics 5644 | -10/Subcaves | Ambushed by swarm of Subdwellers 5697 | -10/Subcaves | Core integrity fell below 20% 5700 | -10/Subcaves | Destroyed by 1K-DTZ(R) with Subdweller Machine Gun Last Messages --------------- 05619_ Subatomizers dissect the Sub. Monowheel. 05644_ 7I-RJU(h): "The Subs are coming!" 05656_ HV Slug penetrates Wall. 05656_ IN-A9P(R) suffers critical hit (Destroy). 05657_ XO-7QN(R) emerges from the Twisted Machinery. 05661_ HT-RZ9(g): "Sorry we're late! Had another grouchy Sub to deal with. Who's the new fellow?" 05661_ 7I-RJU(h) destroyed. 05669_ 1K-DTZ(R) suffers critical hit (Burn). 05669_ 0C-WSV(g) suffers critical hit (Destroy). 05669_ 0C-WSV(g) destroyed. 05674_ H0-62J(g) destroyed. 05675_ Critical hit (Meltdown: +300). 05677_ Ion Engine destroyed. 05687_ 1K-DTZ(R) suffers critical hit (Burn). 05687_ HT-RZ9(g) destroyed. 05695_ XO-7QN(R) destroyed. 05698_ Lgt. Treads destroyed. Map ----- +----------------------------------------------------+ | ?????????????????????????????????????????????????? | | ?????????????????????????????????????????????????? | | ?????????????????????????????????????????????????? | | ?????????????????????????????????????????????????? | | ?????????????????????????????????????????????????? | | ?????????????????????????????????????????????????? | | ?????????????????????????????????????????????????? | | ?????????????????????????????????????????????????? | | ?????????????????????????????????????????????????? | | ?????????????????????????????????????????????????? | | ?????????????????????????????????????????????????? | | ??????????????????##??#######????????????????????? | | ??????????????????# ## # # ####?????????????????? | | ??????????????????? % ##????????????????? | | ??????????????????????? & ### ##???????????? | | ????????????????????????? " [ # #???????? | | ??????????????????????????# =%= %?????? | | ?????????????????????????## #### *?????? | | ????????????????????????## ###??????????????? | | ???????????????????????##%! ! #??????????????? | | ??????????????????????## %! %! ##?????????????? | | ????????????????????### [" * #?????????????? | | ????????????????????# R" ## #?????????????? | | ????????????????????## R&"###? #?????????????? | | ??????????????#"?????#""RRR#??# ###???????????? | | ???????????????"#????#!" @"### " #???????????? | | ???????????????? #??##" " "" ????????????? | | ???????????????? ###"" ##""????????????? | | ?????????????# "" ##???????????????? | | ?????????????## "" ! #????????????????? | | ?????????????# ## "" [%="#????????????????? | | ?????????????# ???# "" " " #????????????????? | | ??????????????????# "" " #????????????????? | | ??????????????#??## """ ## #???????????????? | | ??????????????# ## """ #?#""#???????????????? | | ??????????????# """ "" ##??" #???????????????? | | ??????????????# # " " " ##??? #???????????????? | | ??????????????#### """ %" #???##???????????????? | | ???????????#### #### = "#????????????????????? | | ???????????# #### ##????????????????????? | | ???????????# ### ##?????????????????????? | | ??????????## ##??????????????????????? | | ??????????# #########?????????????????? | | ??????????# # # ###???????????????? | | ??????????# = ##??????????????? | | ??????????## = #??????????????? | | ???????????# # #??????????????? | | ???????????##### % ######### ###??????????????? | | ???????????????######???????#####????????????????? | | ?????????????????????????????????????????????????? | +----------------------------------------------------+ Best States ------------- Heat Dissipation 25 Energy Generation 10 Energy Capacity 250 Matter Stores 300 Matter Capacity 300 Sight Range 16 Terrain Scan Density 10 Evasion (%) 40 Recoil Reduction 2 Item Schematics ----------------- None Robot Schematics ------------------ None Fabricated ------------ Nothing Alien Tech Used ----------------- None Achievements -------------- None Challenges ------------ None Game ------ Seed CoolingMicrodissipatorCycler Manual? 0 Play Time 00:22:33 Cumulative 13.0 hours Start 2024.09.24 @ 15:08:33 End 2024.09.24 @ 17:00:06 Sessions 3 Manual Loads 0 Difficulty Rogue Special Mode None Game No. 23 Rogue 22 Adventurer 1 Explorer 0 Win Type - Total 0 Types 0/0/0/0/0/0/0/0/0 Lore% 11 Gallery% 15 Achievement% 17 Wizard Run 0 Options --------- Layout 1 ASCII 0 Keyboard 0 Movement Arrows Keybinds 0 Fullscreen 1 Font 32/SmallcapsGlow Map View 50x35 Zoom Use 0% Tactical HUD 1 Map Filters NONE Filters NONE Steam 1 RUN: 69d95cc3-6612-4812-a37d-9fd231c3a24c